fUSD/lending_fUSD_20260530
["ID","MTS","AMOUNT","RATE_DAILY","PERIOD"]
[423474025,1780155044000,-150.0,0.00013928,2]
[423474015,1780155044000,-200.0,0.00013867,2]
[423474029,1780155044000,-500.0,0.00013947,2]
[423474027,1780155044000,-1545.0,0.00013946,2]
[423474035,1780155044000,-150.0,0.00013962,2]
[423474037,1780155044000,-166.66,0.00013973,2]
[423474028,1780155044000,-500.0,0.00013947,2]
[423474038,1780155044000,-150.0,0.00013979,2]
[423474034,1780155044000,-150.0,0.00013962,2]
[423474036,1780155044000,-150.0,0.0001397,2]
[423474033,1780155044000,-150.0,0.00013949,2]
[423474039,1780155044000,-192.17336401,0.00013983,2]
[423474031,1780155044000,-500.0,0.00013947,2]
[423474030,1780155044000,-500.0,0.00013947,2]
[423474032,1780155044000,-1544.0,0.00013948,2]
[423474121,1780155045000,-500.0,0.00014249,2]
[423474105,1780155045000,-291.70043947,0.00014247,2]
[423474103,1780155045000,-150.0,0.00014247,2]
[423474109,1780155045000,-151.0,0.00014247,2]
[423474102,1780155045000,-221.84294858,0.00014247,2]
[423474108,1780155045000,-166.66,0.00014247,2]
[423474106,1780155045000,-246.45782846,0.00014247,2]
[423474107,1780155045000,-263.66420644,0.00014247,2]
[423474111,1780155045000,-500.0,0.00014249,2]
[423474101,1780155045000,-252.78034352,0.00014247,2]
[423474104,1780155045000,-150.0,0.00014247,2]
[423474112,1780155045000,-500.0,0.00014249,2]
[423474114,1780155045000,-500.0,0.00014249,2]
[423474110,1780155045000,-500.0,0.00014249,2]
[423474116,1780155045000,-500.0,0.00014249,2]
[423474117,1780155045000,-500.0,0.00014249,2]
[423474113,1780155045000,-500.0,0.00014249,2]
[423474120,1780155045000,-500.0,0.00014249,2]
[423474119,1780155045000,-500.0,0.00014249,2]
[423474118,1780155045000,-500.0,0.00014249,2]
[423474127,1780155045000,-500.0,0.00014249,2]
[423474130,1780155045000,-500.0,0.00014249,2]
[423474132,1780155045000,-500.0,0.00014249,2]
[423474099,1780155045000,-151.0,0.00014237,2]
[423474115,1780155045000,-500.0,0.00014249,2]
[423474100,1780155045000,-228.69569303,0.00014247,2]
[423474125,1780155045000,-500.0,0.00014249,2]
[423474095,1780155045000,-150.0,0.00014204,2]
[423474074,1780155045000,-150.0,0.00014119,2]
[423474073,1780155045000,-166.66,0.0001411,2]
[423474072,1780155045000,-150.0,0.00014104,2]
[423474071,1780155045000,-9186.72184252,0.000141,2]
[423474075,1780155045000,-695.33016603,0.0001412,2]
[423474076,1780155045000,-151.0,0.00014128,2]
[423474080,1780155045000,-150.0,0.0001414,2]
[423474083,1780155045000,-200.0,0.00014146,2]
[423474084,1780155045000,-500.94201781,0.00014148,2]
[423474079,1780155045000,-150.0,0.00014133,2]
[423474082,1780155045000,-200.0,0.00014146,2]
[423474085,1780155045000,-163.0,0.00014151,2]
[423474086,1780155045000,-170.0,0.00014151,2]
[423474078,1780155045000,-199.47279156,0.00014128,2]
[423474077,1780155045000,-156.587,0.00014128,2]
[423474081,1780155045000,-200.0,0.00014146,2]
[423474090,1780155045000,-150.0,0.00014162,2]
[423474098,1780155045000,-150.0,0.00014225,2]
[423474088,1780155045000,-150.987,0.00014151,2]
[423474087,1780155045000,-160.513,0.00014151,2]
[423474089,1780155045000,-150.0,0.00014158,2]
[423474091,1780155045000,-150.0,0.00014167,2]
[423474092,1780155045000,-150.0,0.00014175,2]
[423474097,1780155045000,-152.0,0.00014211,7]
[423474093,1780155045000,-150.0,0.00014183,2]
[423474096,1780155045000,-1839.60337747,0.0001421,7]
[423474122,1780155045000,-500.0,0.00014249,2]
[423474094,1780155045000,-150.0,0.0001419,2]
[423474131,1780155045000,-498.4,0.00014249,2]
[423474183,1780155045000,-1590.0,0.0001468,2]
[423474163,1780155045000,-1876.0,0.00014426,5]
[423474159,1780155045000,-10468.10573176,0.0001439,2]
[423474160,1780155045000,-1238.99758836,0.000144,2]
[423474158,1780155045000,-166.66,0.00014384,2]
[423474161,1780155045000,-2243.41410414,0.00014406,2]
[423474165,1780155045000,-500.0,0.00014435,2]
[423474162,1780155045000,-435.3659984,0.00014406,2]
[423474177,1780155045000,-9186.72184252,0.00014633,2]
[423474166,1780155045000,-500.0,0.00014435,2]
[423474167,1780155045000,-500.0,0.00014435,2]
[423474168,1780155045000,-500.0,0.00014435,2]
[423474172,1780155045000,-695.33016603,0.0001451,2]
[423474173,1780155045000,-1581.31857951,0.00014577,2]
[423474170,1780155045000,-800.0,0.00014452,2]
[423474169,1780155045000,-500.0,0.00014435,2]
[423474175,1780155045000,-2600.0,0.000146,5]
[423474171,1780155045000,-2900.0,0.00014452,2]
[423474174,1780155045000,-1545.0,0.00014578,2]
[423474176,1780155045000,-22216.69289044,0.00014633,2]
[423474178,1780155045000,-2000.0,0.00014645,2]
[423474180,1780155045000,-307.657,0.00014676,2]
[423474181,1780155045000,-1590.0,0.0001468,2]
[423474182,1780155045000,-163.0,0.0001468,2]
[423474129,1780155045000,-500.0,0.00014249,2]
[423474157,1780155045000,-1590.0,0.00014375,2]
[423474164,1780155045000,-1753.0,0.00014426,5]
[423474179,1780155045000,-4054.799,0.00014676,2]
[423474155,1780155045000,-22216.69289044,0.00014366,2]
[423474156,1780155045000,-9186.72184252,0.00014367,2]
[423474124,1780155045000,-500.0,0.00014249,2]
[423474128,1780155045000,-500.0,0.00014249,2]
[423474123,1780155045000,-500.0,0.00014249,2]
[423474135,1780155045000,-500.0,0.00014249,2]
[423474133,1780155045000,-500.0,0.00014249,2]
[423474134,1780155045000,-207.9347959,0.00014249,2]
[423474139,1780155045000,-3453.62,0.00014249,2]
[423474141,1780155045000,-3453.62,0.00014249,2]
[423474142,1780155045000,-3453.62,0.00014249,2]
[423474136,1780155045000,-500.0,0.00014249,2]
[423474138,1780155045000,-500.0,0.00014249,2]
[423474140,1780155045000,-3453.62,0.00014249,2]
[423474126,1780155045000,-500.0,0.00014249,2]
[423474143,1780155045000,-553.36280109,0.00014249,2]
[423474137,1780155045000,-500.0,0.00014249,2]
[423474146,1780155045000,-350.0,0.00014274,2]
[423474152,1780155045000,-1590.0,0.0001436,2]
[423474145,1780155045000,-765118.732192,0.0001425,2]
[423474147,1780155045000,-2318.0,0.0001436,2]
[423474148,1780155045000,-1590.0,0.0001436,2]
[423474151,1780155045000,-166.0,0.0001436,2]
[423474149,1780155045000,-2318.0,0.0001436,2]
[423474154,1780155045000,-2318.0,0.00014365,2]
[423474144,1780155045000,-928.26091419,0.0001425,2]
[423474153,1780155045000,-1590.0,0.0001436,2]
[423474150,1780155045000,-1590.0,0.0001436,2]
[423474203,1780155046000,-695.33016603,0.000149,2]
[423474206,1780155046000,-22216.69289044,0.000149,2]
[423474207,1780155046000,-772.0,0.000149,2]
[423474210,1780155046000,-2243.41410414,0.000149,2]
[423474212,1780155046000,-9186.72184252,0.000149,2]
[423474211,1780155046000,-435.3659984,0.000149,2]
[423474223,1780155046000,-500.0,0.00014998,2]
[423474216,1780155046000,-250.0,0.00014925,2]
[423474219,1780155046000,-1481.63781,0.00014983,2]
[423474217,1780155046000,-500.0,0.00014982,2]
[423474221,1780155046000,-167.17,0.00014996,2]
[423474222,1780155046000,-151.0,0.00014997,2]
[423474220,1780155046000,-153.71874188,0.00014986,2]
[423474226,1780155046000,-3453.62,0.00014998,2]
[423474227,1780155046000,-3453.62,0.00014998,2]
[423474228,1780155046000,-3453.62,0.00014998,2]
[423474224,1780155046000,-500.0,0.00014998,2]
[423474225,1780155046000,-3453.62,0.00014998,2]
[423474205,1780155046000,-928.0,0.000149,2]
[423474229,1780155046000,-3453.71194445,0.00014998,2]
[423474218,1780155046000,-500.0,0.00014982,2]
[423474209,1780155046000,-315.0,0.000149,2]
[423474189,1780155046000,-753.72,0.00014699,2]
[423474208,1780155046000,-2600.0,0.000149,5]
[423474231,1780155046000,-500.0,0.00014999,2]
[423474187,1780155046000,-163.0,0.00014685,2]
[423474186,1780155046000,-1590.0,0.0001468,2]
[423474185,1780155046000,-1590.0,0.0001468,2]
[423474188,1780155046000,-1593.0,0.00014695,2]
[423474200,1780155046000,-151.0,0.00014896,2]
[423474190,1780155046000,-6950.64531336,0.000147,2]
[423474201,1780155046000,-500.0,0.00014899,2]
[423474202,1780155046000,-500.0,0.00014899,2]
[423474215,1780155046000,-400.0,0.00014925,2]
[423474192,1780155046000,-2600.0,0.000147,5]
[423474193,1780155046000,-700.0,0.00014756,2]
[423474199,1780155046000,-981.0,0.00014894,5]
[423474195,1780155046000,-200.0,0.00014791,2]
[423474198,1780155046000,-200.0,0.00014879,2]
[423474196,1780155046000,-201.0,0.000148,2]
[423474197,1780155046000,-2600.0,0.000148,5]
[423474204,1780155046000,-22881.92531617,0.000149,3]
[423474214,1780155046000,-250.0,0.000149,2]
[423474213,1780155046000,-192.17336401,0.000149,2]
[423474194,1780155046000,-1545.0,0.00014789,2]
[423474233,1780155046000,-500.0,0.00014999,2]
[423474184,1780155046000,-163.0,0.0001468,2]
[423474239,1780155046000,-500.0,0.00014999,2]
[423474262,1780155046000,-500.0,0.00014999,2]
[423474256,1780155046000,-500.0,0.00014999,2]
[423474264,1780155046000,-500.0,0.00014999,2]
[423474265,1780155046000,-500.0,0.00014999,2]
[423474257,1780155046000,-500.0,0.00014999,2]
[423474258,1780155046000,-500.0,0.00014999,2]
[423474261,1780155046000,-334.19838374,0.00014999,2]
[423474267,1780155046000,-500.0,0.00014999,2]
[423474266,1780155046000,-500.0,0.00014999,2]
[423474255,1780155046000,-500.0,0.00014999,2]
[423474269,1780155046000,-500.0,0.00014999,2]
[423474273,1780155046000,-500.0,0.00014999,2]
[423474275,1780155046000,-500.0,0.00014999,2]
[423474271,1780155046000,-395.14050061,0.00014999,2]
[423474268,1780155046000,-500.0,0.00014999,2]
[423474270,1780155046000,-500.0,0.00014999,2]
[423474272,1780155046000,-500.0,0.00014999,2]
[423474276,1780155046000,-604.98515219,0.00014999,2]
[423474278,1780155046000,-386.96,0.00014999,2]
[423474277,1780155046000,-500.0,0.00014999,2]
[423474274,1780155046000,-500.0,0.00014999,2]
[423474254,1780155046000,-500.0,0.00014999,2]
[423474260,1780155046000,-500.0,0.00014999,2]
[423474259,1780155046000,-500.0,0.00014999,2]
[423474238,1780155046000,-500.0,0.00014999,2]
[423474230,1780155046000,-3557.79982436,0.00014999,2]
[423474240,1780155046000,-500.0,0.00014999,2]
[423474232,1780155046000,-500.0,0.00014999,2]
[423474236,1780155046000,-500.0,0.00014999,2]
[423474237,1780155046000,-500.0,0.00014999,2]
[423474235,1780155046000,-500.0,0.00014999,2]
[423474248,1780155046000,-500.0,0.00014999,2]
[423474251,1780155046000,-500.0,0.00014999,2]
[423474241,1780155046000,-500.0,0.00014999,2]
[423474253,1780155046000,-500.0,0.00014999,2]
[423474243,1780155046000,-313.45446805,0.00014999,2]
[423474242,1780155046000,-500.0,0.00014999,2]
[423474252,1780155046000,-500.0,0.00014999,2]
[423474247,1780155046000,-500.0,0.00014999,2]
[423474244,1780155046000,-500.0,0.00014999,2]
[423474245,1780155046000,-470.59046541,0.00014999,2]
[423474246,1780155046000,-500.0,0.00014999,2]
[423474249,1780155046000,-500.0,0.00014999,2]
[423474250,1780155046000,-500.0,0.00014999,2]
[423474263,1780155046000,-500.0,0.00014999,2]
[423474279,1780155046000,-893667.13795734,0.00015,2]
[423474234,1780155046000,-500.0,0.00014999,2]
[423474287,1780155047000,-25548.38353755,0.00015,2]
[423474288,1780155047000,-152729.51808497,0.00015,2]
[423474289,1780155048000,-3750.09776707,0.00015,2]
[423474292,1780155048000,-6584.0,0.00015,2]
[423474290,1780155048000,-69879.295823,0.00015,2]
[423474293,1780155048000,-635.35038789,0.00015,2]
[423474291,1780155048000,-329.0271002,0.00015,2]
[423474295,1780155048000,-1953.54876495,0.00015,2]
[423474302,1780155048000,-910.74801724,0.00015,2]
[423474294,1780155048000,-2788.12341745,0.00015,2]
[423474300,1780155048000,-151.55341745,0.00013698,2]
[423474297,1780155048000,-623.33,0.00012717,2]
[423474299,1780155048000,-340.05698,0.00013035,2]
[423474298,1780155048000,-283.27302,0.00013035,2]
[423474301,1780155048000,-20.8221013,0.00015,2]
[423474296,1780155048000,-14483.57519995,0.00015,2]
[423474328,1780155149000,-500.0,0.00015,2]
[423474324,1780155149000,-500.0,0.00015,2]
[423474323,1780155149000,-500.0,0.00015,2]
[423474327,1780155149000,-500.0,0.00015,2]
[423474329,1780155149000,-500.0,0.00015,2]
[423474337,1780155149000,-500.0,0.00015,2]
[423474336,1780155149000,-500.0,0.00015,2]
[423474334,1780155149000,-500.0,0.00015,2]
[423474333,1780155149000,-500.0,0.00015,2]
[423474339,1780155149000,-500.0,0.00015,2]
[423474331,1780155149000,-500.0,0.00015,2]
[423474335,1780155149000,-500.0,0.00015,2]
[423474325,1780155149000,-500.0,0.00015,2]
[423474330,1780155149000,-500.0,0.00015,2]
[423474326,1780155149000,-500.0,0.00015,2]
[423474315,1780155149000,-4848061.19992899,0.00015,2]
[423474322,1780155149000,-791.42,0.00015,2]
[423474306,1780155149000,-623.33,0.00013353,2]
[423474307,1780155149000,-340061.98224569,0.00015,2]
[423474308,1780155149000,-1555899.83230623,0.00015,2]
[423474312,1780155149000,-1149235.57050023,0.00015,2]
[423474313,1780155149000,-352135.07642993,0.00015,2]
[423474309,1780155149000,-696.38,0.00015,2]
[423474314,1780155149000,-13107.6474919,0.00015,7]
[423474310,1780155149000,-266100.71652646,0.00015,2]
[423474311,1780155149000,-3326467.15112796,0.00015,2]
[423474316,1780155149000,-1816332.8717313,0.00015,2]
[423474332,1780155149000,-500.0,0.00015,2]
[423474317,1780155149000,-131940.81261563,0.00015,2]
[423474318,1780155149000,-444821.55835666,0.00015,2]
[423474319,1780155149000,-3589320.09077886,0.00015,2]
[423474320,1780155149000,-303384.06033962,0.00015,2]
[423474321,1780155149000,-360.7,0.00015,2]
[423474338,1780155149000,-500.0,0.00015,2]
[423474341,1780155149000,-500.0,0.00015,2]
[423474342,1780155149000,-500.0,0.00015,2]
[423474362,1780155149000,-1000.0,0.00015,2]
[423474364,1780155149000,-1000.0,0.00015,2]
[423474363,1780155149000,-1000.0,0.00015,2]
[423474365,1780155149000,-440.49,0.00015,2]
[423474368,1780155149000,-400.0,0.00015,2]
[423474366,1780155149000,-537674.70403637,0.00015,2]
[423474361,1780155149000,-1000.0,0.00015,2]
[423474370,1780155149000,-1590.0,0.00015005,2]
[423474369,1780155149000,-757.0,0.00015,2]
[423474372,1780155149000,-1590.0,0.00015015,2]
[423474371,1780155149000,-2318.0,0.00015005,2]
[423474375,1780155149000,-278.91490716,0.00015041,2]
[423474373,1780155149000,-2318.0,0.00015015,2]
[423474340,1780155149000,-500.0,0.00015,2]
[423474367,1780155149000,-1008.53156636,0.00015,2]
[423474359,1780155149000,-1000.0,0.00015,2]
[423474374,1780155149000,-1590.0,0.00015015,2]
[423474358,1780155149000,-1000.0,0.00015,2]
[423474360,1780155149000,-1000.0,0.00015,2]
[423474345,1780155149000,-500.0,0.00015,2]
[423474343,1780155149000,-500.0,0.00015,2]
[423474347,1780155149000,-500.0,0.00015,2]
[423474344,1780155149000,-500.0,0.00015,2]
[423474349,1780155149000,-500.0,0.00015,2]
[423474348,1780155149000,-500.0,0.00015,2]
[423474346,1780155149000,-500.0,0.00015,2]
[423474351,1780155149000,-1765051.69459943,0.00015,2]
[423474352,1780155149000,-247521.08428833,0.00015,2]
[423474357,1780155149000,-1387.76016046,0.00015,2]
[423474355,1780155149000,-150.0,0.00015,2]
[423474356,1780155149000,-704.82174697,0.00015,2]
[423474353,1780155149000,-150.0,0.00015,2]
[423474350,1780155149000,-372.8,0.00015,2]
[423474354,1780155149000,-415.19486804,0.00015,2]
[423474419,1780155150000,-653.0,0.00015476,2]
[423474417,1780155150000,-1481.63782,0.00015383,2]
[423474409,1780155150000,-946.578955,0.00015068,2]
[423474410,1780155150000,-153.27,0.00015146,2]
[423474411,1780155150000,-1481.63781,0.00015183,2]
[423474406,1780155150000,-946.578962,0.00015068,2]
[423474407,1780155150000,-946.578962,0.00015068,2]
[423474412,1780155150000,-1387.76016046,0.000152,2]
[423474408,1780155150000,-946.578962,0.00015068,2]
[423474413,1780155150000,-1387.76016046,0.000153,2]
[423474405,1780155150000,-946.578962,0.00015068,2]
[423474415,1780155150000,-1590.0,0.00015335,2]
[423474418,1780155150000,-1057.84,0.00015428,2]
[423474428,1780155150000,-480.0,0.00015476,2]
[423474420,1780155150000,-800.0,0.00015476,2]
[423474425,1780155150000,-502.0,0.00015476,2]
[423474422,1780155150000,-1342.0,0.00015476,2]
[423474424,1780155150000,-675.0,0.00015476,2]
[423474423,1780155150000,-1314.0,0.00015476,2]
[423474427,1780155150000,-467.0,0.00015476,2]
[423474426,1780155150000,-1966.0,0.00015476,2]
[423474429,1780155150000,-1861.0,0.00015476,2]
[423474431,1780155150000,-167.18,0.0001549,2]
[423474430,1780155150000,-1879.0,0.00015476,2]
[423474433,1780155150000,-1387.76016046,0.000155,2]
[423474414,1780155150000,-262.79923231,0.00015332,2]
[423474421,1780155150000,-414.0,0.00015476,2]
[423474404,1780155150000,-946.578962,0.00015068,2]
[423474389,1780155150000,-900.0,0.00015068,2]
[423474402,1780155150000,-946.578962,0.00015068,2]
[423474434,1780155150000,-10000.0,0.0001556,2]
[423474377,1780155150000,-2000.0,0.00015043,2]
[423474379,1780155150000,-2000.0,0.00015043,2]
[423474378,1780155150000,-2000.0,0.00015043,2]
[423474381,1780155150000,-2000.0,0.00015043,2]
[423474380,1780155150000,-2000.0,0.00015043,2]
[423474376,1780155150000,-220.50209337,0.00015041,2]
[423474383,1780155150000,-866.59,0.00015043,2]
[423474382,1780155150000,-2000.0,0.00015043,2]
[423474385,1780155150000,-2000.0,0.00015043,2]
[423474384,1780155150000,-2000.0,0.00015043,2]
[423474387,1780155150000,-2000.0,0.00015043,2]
[423474403,1780155150000,-946.578962,0.00015068,2]
[423474390,1780155150000,-946.578962,0.00015068,2]
[423474386,1780155150000,-1361.08,0.00015043,2]
[423474391,1780155150000,-946.578962,0.00015068,2]
[423474393,1780155150000,-946.578962,0.00015068,2]
[423474392,1780155150000,-946.578962,0.00015068,2]
[423474395,1780155150000,-946.578962,0.00015068,2]
[423474397,1780155150000,-946.578962,0.00015068,2]
[423474400,1780155150000,-946.578962,0.00015068,2]
[423474401,1780155150000,-946.578962,0.00015068,2]
[423474396,1780155150000,-946.578962,0.00015068,2]
[423474399,1780155150000,-946.578962,0.00015068,2]
[423474394,1780155150000,-946.578962,0.00015068,2]
[423474398,1780155150000,-946.578962,0.00015068,2]
[423474388,1780155150000,-1216.64,0.00015043,2]
[423474432,1780155150000,-500.0,0.000155,2]
[423474416,1780155150000,-10000.0,0.00015367,2]
[423474437,1780155150000,-472.98,0.000156,2]
[423474467,1780155150000,-163.0,0.00016315,2]
[423474469,1780155150000,-277.43026773,0.00016321,2]
[423474468,1780155150000,-2318.0,0.00016315,2]
[423474472,1780155150000,-2318.0,0.00016325,2]
[423474473,1780155150000,-1387.76016046,0.000164,2]
[423474470,1780155150000,-2318.0,0.00016325,2]
[423474477,1780155150000,-404.76061537,0.00016438,2]
[423474471,1780155150000,-1590.0,0.00016325,2]
[423474476,1780155150000,-9494.57,0.00016438,2]
[423474474,1780155150000,-153.27,0.00016408,2]
[423474478,1780155150000,-189.85,0.00016438,2]
[423474475,1780155150000,-2671.5,0.00016438,2]
[423474466,1780155150000,-1387.76016046,0.000162,2]
[423474479,1780155150000,-900.0,0.00016438,2]
[423474480,1780155150000,-152.0,0.00016438,2]
[423474482,1780155150000,-4439.208117,0.00016438,2]
[423474484,1780155150000,-4439.208117,0.00016438,2]
[423474483,1780155150000,-4439.208117,0.00016438,2]
[423474486,1780155150000,-4439.208117,0.00016438,2]
[423474488,1780155150000,-4439.208117,0.00016438,2]
[423474489,1780155150000,-4439.208117,0.00016438,2]
[423474485,1780155150000,-4439.208117,0.00016438,2]
[423474487,1780155150000,-4439.208117,0.00016438,2]
[423474490,1780155150000,-4439.208117,0.00016438,2]
[423474493,1780155150000,-4439.208117,0.00016438,2]
[423474491,1780155150000,-4439.208117,0.00016438,2]
[423474481,1780155150000,-152.0,0.00016438,2]
[423474458,1780155150000,-191.18475271,0.00016027,2]
[423474439,1780155150000,-223.58,0.000156,2]
[423474461,1780155150000,-681.39113871,0.000161,2]
[423474435,1780155150000,-12741.22771829,0.00015563,2]
[423474438,1780155150000,-1387.76016046,0.000156,2]
[423474440,1780155150000,-500.0,0.00015603,2]
[423474436,1780155150000,-1481.63781,0.00015583,2]
[423474441,1780155150000,-2318.0,0.00015655,2]
[423474442,1780155150000,-163.0,0.00015655,2]
[423474445,1780155150000,-350.0,0.00015747,2]
[423474464,1780155150000,-163.0,0.00016125,2]
[423474451,1780155150000,-2900.0,0.00015822,2]
[423474453,1780155150000,-1481.63781,0.00015983,2]
[423474446,1780155150000,-500.0,0.00015774,2]
[423474452,1780155150000,-1387.76016046,0.000159,2]
[423474443,1780155150000,-2318.0,0.00015655,2]
[423474450,1780155150000,-800.0,0.00015822,2]
[423474447,1780155150000,-1481.63782,0.00015783,2]
[423474444,1780155150000,-2318.0,0.00015675,2]
[423474465,1780155150000,-753.72,0.00016169,2]
[423474463,1780155150000,-229.87005247,0.0001611,15]
[423474460,1780155150000,-1387.76016046,0.000161,2]
[423474459,1780155150000,-500.0,0.00016047,2]
[423474456,1780155150000,-681.39113871,0.00016,2]
[423474462,1780155150000,-2000.0,0.0001611,2]
[423474454,1780155150000,-778.60591016,0.00016,2]
[423474455,1780155150000,-300.0,0.00016,2]
[423474449,1780155150000,-500.0,0.00015822,2]
[423474448,1780155150000,-1387.76016046,0.000158,2]
[423474492,1780155150000,-4439.208117,0.00016438,2]
[423474457,1780155150000,-210.28099,0.00016,2]
[423474530,1780155151000,-377.783006,0.00016438,2]
[423474529,1780155151000,-377.783006,0.00016438,2]
[423474534,1780155151000,-377.783006,0.00016438,2]
[423474531,1780155151000,-377.783006,0.00016438,2]
[423474537,1780155151000,-377.783006,0.00016438,2]
[423474522,1780155151000,-152.736117,0.00016438,2]
[423474528,1780155151000,-377.783006,0.00016438,2]
[423474526,1780155151000,-377.783006,0.00016438,2]
[423474527,1780155151000,-377.783006,0.00016438,2]
[423474524,1780155151000,-377.783006,0.00016438,2]
[423474532,1780155151000,-377.783006,0.00016438,2]
[423474533,1780155151000,-377.783006,0.00016438,2]
[423474549,1780155151000,-500.0,0.00016438,2]
[423474536,1780155151000,-377.783006,0.00016438,2]
[423474539,1780155151000,-377.783006,0.00016438,2]
[423474538,1780155151000,-377.783006,0.00016438,2]
[423474540,1780155151000,-377.783006,0.00016438,2]
[423474542,1780155151000,-377.782997,0.00016438,2]
[423474551,1780155151000,-500.0,0.00016438,2]
[423474550,1780155151000,-500.0,0.00016438,2]
[423474541,1780155151000,-377.783006,0.00016438,2]
[423474543,1780155151000,-500.0,0.00016438,2]
[423474544,1780155151000,-500.0,0.00016438,2]
[423474547,1780155151000,-500.0,0.00016438,2]
[423474545,1780155151000,-500.0,0.00016438,2]
[423474525,1780155151000,-377.783006,0.00016438,2]
[423474535,1780155151000,-377.783006,0.00016438,2]
[423474521,1780155151000,-915.283516,0.00016438,2]
[423474510,1780155151000,-915.283523,0.00016438,2]
[423474519,1780155151000,-915.283523,0.00016438,2]
[423474546,1780155151000,-500.0,0.00016438,2]
[423474496,1780155151000,-4439.208117,0.00016438,2]
[423474497,1780155151000,-4439.208117,0.00016438,2]
[423474494,1780155151000,-4439.208117,0.00016438,2]
[423474495,1780155151000,-4439.208117,0.00016438,2]
[423474499,1780155151000,-4439.208117,0.00016438,2]
[423474498,1780155151000,-4439.208117,0.00016438,2]
[423474501,1780155151000,-4439.208115,0.00016438,2]
[423474500,1780155151000,-4439.208117,0.00016438,2]
[423474503,1780155151000,-915.283523,0.00016438,2]
[423474502,1780155151000,-915.283523,0.00016438,2]
[423474505,1780155151000,-915.283523,0.00016438,2]
[423474523,1780155151000,-377.783006,0.00016438,2]
[423474509,1780155151000,-915.283523,0.00016438,2]
[423474506,1780155151000,-915.283523,0.00016438,2]
[423474513,1780155151000,-915.283523,0.00016438,2]
[423474512,1780155151000,-915.283523,0.00016438,2]
[423474504,1780155151000,-915.283523,0.00016438,2]
[423474507,1780155151000,-915.283523,0.00016438,2]
[423474514,1780155151000,-915.283523,0.00016438,2]
[423474508,1780155151000,-915.283523,0.00016438,2]
[423474515,1780155151000,-915.283523,0.00016438,2]
[423474516,1780155151000,-915.283523,0.00016438,2]
[423474517,1780155151000,-915.283523,0.00016438,2]
[423474518,1780155151000,-915.283523,0.00016438,2]
[423474520,1780155151000,-915.283523,0.00016438,2]
[423474511,1780155151000,-915.283523,0.00016438,2]
[423474548,1780155151000,-500.0,0.00016438,2]
[423474553,1780155151000,-500.0,0.00016438,2]
[423474610,1780155151000,-200.0,0.000169,30]
[423474581,1780155151000,-414.0,0.00016476,2]
[423474586,1780155151000,-1966.0,0.00016476,2]
[423474590,1780155151000,-1879.0,0.00016476,2]
[423474589,1780155151000,-1861.0,0.00016476,2]
[423474591,1780155151000,-1492.0,0.00016482,2]
[423474593,1780155151000,-6618.30733777,0.000165,2]
[423474587,1780155151000,-467.0,0.00016476,2]
[423474592,1780155151000,-791.42,0.000165,2]
[423474588,1780155151000,-480.0,0.00016476,2]
[423474596,1780155151000,-169.5,0.00016506,2]
[423474594,1780155151000,-13069.77314437,0.000165,2]
[423474597,1780155151000,-169.5,0.00016506,2]
[423474582,1780155151000,-1342.0,0.00016476,2]